fUST/lending_fUST_20240303
["ID","MTS","AMOUNT","RATE_DAILY","PERIOD"]
[316253637,1709413843569,-1485.64,0.00023999,2]
[316253639,1709413843578,-1485.64,0.00023999,2]
[316253641,1709413843588,-1485.64,0.00023999,2]
[316253643,1709413843598,-1485.64,0.00023999,2]
[316253645,1709413843608,-1485.64,0.00023999,2]
[316253647,1709413843618,-1485.64,0.00023999,2]
[316253649,1709413843632,-1485.64,0.00023999,2]
[316253651,1709413843643,-1485.64,0.00023999,2]
[316253653,1709413843652,-1485.64,0.00023999,2]
[316253655,1709413843662,-1485.64,0.00023999,2]
[316253657,1709413843673,-1485.64,0.00023999,2]
[316253659,1709413843684,-1485.64,0.00023999,2]
[316253662,1709413843694,-1485.64,0.00023999,2]
[316253675,1709413843705,-39.23189055,0.00023999,2]
[316253679,1709413843849,-1446.60998062,0.00023999,2]
[316253681,1709413843858,-190.92251444,0.00023999,2]
[316253683,1709413843870,-309.07748556,0.00023999,2]
[316253685,1709413843879,-500.0,0.00023999,2]
[316253687,1709413843888,-500.0,0.00023999,2]
[316253689,1709413843899,-500.0,0.00023999,2]
[316253691,1709413843909,-500.0,0.00023999,2]
[316253693,1709413843919,-500.0,0.00023999,2]
[316253695,1709413843928,-500.0,0.00023999,2]
[316253697,1709413843937,-131.91902944,0.00023999,2]
[316253943,1709413846600,-368.08097056,0.00023999,2]
[316253945,1709413846609,-141.33218349,0.00023999,2]
[316253951,1709413846657,-358.66781651,0.00023999,2]
[316253953,1709413846667,-500.0,0.00023999,2]
[316253956,1709413846676,-500.0,0.00023999,2]
[316253959,1709413846686,-500.0,0.00023999,2]
[316253962,1709413846696,-500.0,0.00023999,2]
[316253965,1709413846705,-500.0,0.00023999,2]
[316253968,1709413846716,-500.0,0.00023999,2]
[316253971,1709413846725,-535.0,0.00023999,2]
[316253974,1709413846734,-1393.49,0.00023999,2]
[316253977,1709413846743,-1393.49,0.00023999,2]
[316253980,1709413846753,-1393.49,0.00023999,2]
[316253983,1709413846762,-1393.49,0.00023999,2]
[316253986,1709413846772,-1393.49,0.00023999,2]
[316253988,1709413846781,-1393.49,0.00023999,2]
[316253991,1709413846790,-1393.49,0.00023999,2]
[316253994,1709413846799,-1393.49,0.00023999,2]
[316253996,1709413846809,-1393.49,0.00023999,2]
[316253999,1709413846818,-1393.49,0.00023999,2]
[316254002,1709413846827,-1393.49,0.00023999,2]
[316254005,1709413846837,-1393.49,0.00023999,2]
[316254008,1709413846846,-1393.49,0.00023999,2]
[316254011,1709413846855,-564.58867049,0.00023999,2]
[316254016,1709413846869,-828.90132951,0.00023999,2]
[316254019,1709413846878,-1393.49,0.00023999,2]
[316254022,1709413846887,-1393.49,0.00023999,2]
[316254024,1709413846897,-1393.49,0.00023999,2]
[316254026,1709413846906,-1393.49,0.00023999,2]
[316254028,1709413846916,-1393.49,0.00023999,2]
[316254030,1709413846925,-1393.51075711,0.00023999,2]
[316254032,1709413846935,-500.0,0.00023999,2]
[316254034,1709413846944,-500.0,0.00023999,2]
[316254036,1709413846953,-500.0,0.00023999,2]
[316254038,1709413846962,-500.0,0.00023999,2]
[316254040,1709413846972,-583.56995199,0.00023999,2]
[316254042,1709413846982,-204.4532614,0.00023999,2]
[316254044,1709413846992,-673.95,0.00023999,2]
[316254046,1709413847001,-673.95,0.00023999,2]
[316254047,1709413847011,-673.95,0.00023999,2]
[316254049,1709413847021,-2393.99,0.00023999,2]
[316254051,1709413847031,-2393.99,0.00023999,2]
[316254053,1709413847040,-673.95,0.00023999,2]
[316254055,1709413847049,-2393.99,0.00023999,2]
[316254057,1709413847058,-673.95,0.00023999,2]
[316254060,1709413847070,-2393.99,0.00023999,2]
[316254062,1709413847079,-2393.99,0.00023999,2]
[316254064,1709413847089,-673.95,0.00023999,2]
[316254066,1709413847098,-673.95,0.00023999,2]
[316254067,1709413847108,-2393.99,0.00023999,2]
[316254069,1709413847117,-673.95,0.00023999,2]
[316254071,1709413847126,-2393.99,0.00023999,2]
[316254073,1709413847136,-673.95,0.00023999,2]
[316254075,1709413847144,-2393.99,0.00023999,2]
[316254077,1709413847156,-673.95,0.00023999,2]
[316254079,1709413847165,-2393.99,0.00023999,2]
[316254081,1709413847174,-673.95,0.00023999,2]
[316254083,1709413847184,-2393.99,0.00023999,2]
[316254085,1709413847193,-543.82672799,0.00023999,2]
[316257464,1709413967192,-285.50038418,0.00021899,2]
[316257465,1709414004711,-744.79129449,0.00021821,2]
[316257466,1709414004749,-883.67733257,0.00021821,2]
[316257467,1709414004783,-324.78278527,0.00021821,2]
[316257468,1709414004819,-500.0,0.00021822,2]
[316257474,1709414528645,-744.79129449,0.00021894,2]
[316257475,1709414528680,-324.78278527,0.00021895,2]
[316257476,1709414528715,-883.67733257,0.00021896,2]
[316257477,1709414528761,-419.10970041,0.00021896,2]
[316257478,1709414528803,-190.33358946,0.00021899,2]
[316257647,1709415038241,-327.2251864,0.00022442,2]
[316257649,1709415038250,-2112.29516971,0.00022443,2]
[316257651,1709415038259,-744.79129449,0.00022444,2]
[316257653,1709415038268,-321.4643478,0.00022445,2]
[316257655,1709415038277,-155.02015262,0.00022446,2]
[316257657,1709415038287,-1604.52879741,0.00022447,2]
[316257659,1709415038296,-2287.11363804,0.00022467,2]
[316257661,1709415038305,-8238.10848653,0.0002247,3]
[316257663,1709415038315,-500.0,0.00022595,2]
[316257665,1709415038324,-500.0,0.00022595,2]
[316257667,1709415038334,-500.0,0.00022595,2]
[316257669,1709415038343,-500.0,0.00022595,2]
[316257671,1709415038352,-500.0,0.00022595,2]
[316257673,1709415038361,-500.0,0.00022595,2]
[316257675,1709415038370,-500.0,0.00022595,2]
[316257677,1709415038379,-500.0,0.00022595,2]
[316257679,1709415038388,-500.0,0.00022595,2]
[316257681,1709415038397,-500.0,0.00022595,2]
[316257683,1709415038407,-500.0,0.00022595,2]
[316257685,1709415038416,-500.0,0.00022595,2]
[316257687,1709415038425,-500.0,0.00022596,2]
[316257689,1709415038435,-279.68942513,0.00022763,4]
[316257691,1709415038444,-155.0,0.00022999,2]
[316257693,1709415038453,-500.0,0.000237,2]
[316257695,1709415038462,-500.0,0.000237,2]
[316257697,1709415038472,-500.0,0.000237,2]
[316257699,1709415038481,-500.0,0.000237,2]
[316257701,1709415038491,-5000.0,0.0002375,5]
[316257703,1709415038499,-5000.0,0.00023752,5]
[316257705,1709415038509,-500.0,0.00023898,2]
[316257707,1709415038519,-500.0,0.00023898,2]
[316257709,1709415038529,-500.0,0.00023898,2]
[316257711,1709415038538,-500.0,0.00023898,2]
[316257713,1709415038547,-500.0,0.00023898,2]
[316257715,1709415038556,-500.0,0.00023898,2]
[316257717,1709415038565,-500.0,0.00023898,2]
[316257718,1709415038574,-500.0,0.00023898,2]
[316257720,1709415038584,-500.0,0.00023898,2]
[316257722,1709415038593,-626.07,0.00023898,2]
[316257724,1709415038602,-500.0,0.00023898,2]
[316257726,1709415038611,-503.78076456,0.00023898,2]
[316257728,1709415038620,-500.0,0.00023898,2]
[316257730,1709415038629,-501.86402129,0.00023898,2]
[316257732,1709415038639,-500.90236481,0.00023898,2]
[316257734,1709415038648,-500.0,0.00023898,2]
[316257736,1709415038657,-500.0,0.00023898,2]
[316257738,1709415038666,-500.0,0.00023898,2]
[316257740,1709415038675,-386.98781305,0.00023898,2]
[316257742,1709415038684,-500.0,0.00023898,2]
[316257744,1709415038693,-674.93,0.00023898,2]
[316257746,1709415038702,-2014.42,0.00023898,2]
[316257748,1709415038711,-501.97582698,0.00023898,2]
[316257750,1709415038720,-702.66,0.00023898,2]
[316257752,1709415038729,-500.0,0.00023898,2]
[316257754,1709415038738,-500.0,0.00023898,2]
[316257756,1709415038747,-500.0,0.00023898,2]
[316257758,1709415038756,-500.0,0.00023898,2]
[316257760,1709415038766,-500.0,0.00023898,2]
[316257762,1709415038777,-500.0,0.00023898,2]
[316257764,1709415038786,-500.0,0.00023898,2]
[316257766,1709415038795,-500.0,0.00023898,2]
[316257768,1709415038804,-500.0,0.00023898,2]
[316257770,1709415038813,-500.0,0.00023898,2]
[316257772,1709415038823,-253.19,0.00023898,2]
[316257774,1709415038832,-502.04432248,0.00023899,2]
[316257776,1709415038841,-500.0,0.00023899,2]
[316257778,1709415038850,-181.82041299,0.00023899,2]
[316257780,1709415038860,-500.0,0.00023899,2]
[316257782,1709415038869,-500.0,0.00023899,2]
[316257784,1709415038878,-500.0,0.00023899,2]
[316257786,1709415038887,-298.46954899,0.00023899,2]
[316257788,1709415038897,-500.0,0.00023899,2]
[316257790,1709415038907,-500.0,0.00023899,2]
[316257792,1709415038916,-500.0,0.00023899,2]
[316257794,1709415038925,-500.0,0.00023899,2]
[316257796,1709415038934,-500.0,0.00023899,2]
[316257798,1709415038945,-502.0534196,0.00023899,2]
[316257810,1709415039046,-172.15821987,0.00023899,2]
[316257812,1709415039056,-500.0,0.00023899,2]
[316257814,1709415039065,-225.83201893,0.00023899,2]
[316257816,1709415039075,-500.9710842,0.00023899,2]
[316257818,1709415039084,-500.0,0.00023899,2]
[316257820,1709415039093,-502.21938465,0.00023899,2]
[316257822,1709415039102,-500.0,0.00023899,2]
[316257824,1709415039112,-500.0,0.00023899,2]
[316257826,1709415039121,-500.0,0.00023899,2]
[316257828,1709415039131,-500.0,0.00023899,2]
[316257830,1709415039140,-500.0,0.00023899,2]
[316257832,1709415039149,-500.0,0.00023899,2]
[316257834,1709415039159,-500.0,0.00023899,2]
[316257836,1709415039168,-500.0,0.00023899,2]
[316257838,1709415039177,-500.0,0.00023899,2]
[316257840,1709415039186,-500.56773354,0.00023899,2]
[316257842,1709415039195,-500.0,0.00023899,2]
[316257844,1709415039206,-500.0,0.00023899,2]
[316257846,1709415039216,-500.0,0.00023899,2]
[316257848,1709415039226,-500.0,0.00023899,2]
[316257850,1709415039235,-500.0,0.00023899,2]
[316257852,1709415039245,-500.0,0.00023899,2]
[316257854,1709415039254,-500.0,0.00023899,2]
[316257855,1709415039263,-500.0,0.00023899,2]
[316257856,1709415039272,-500.0,0.00023899,2]
[316257857,1709415039281,-500.0,0.00023899,2]
[316257858,1709415039290,-788.19,0.00023899,2]
[316257859,1709415039298,-500.0,0.00023899,2]
[316257860,1709415039308,-500.0,0.00023899,2]
[316257861,1709415039317,-704.83,0.00023899,2]
[316257862,1709415039326,-283.39637168,0.00023899,2]
[316257863,1709415039335,-500.0,0.00023899,2]
[316257864,1709415039344,-500.0,0.00023899,2]
[316257865,1709415039353,-500.0,0.00023899,2]
[316257867,1709415039362,-500.0,0.00023899,2]
[316257868,1709415039370,-500.0,0.00023899,2]
[316257869,1709415039379,-500.0,0.00023899,2]
[316257870,1709415039388,-633.04,0.00023899,2]
[316257871,1709415039398,-500.0,0.00023899,2]
[316257872,1709415039407,-500.0,0.00023899,2]
[316257874,1709415039417,-475.09994795,0.00023899,2]
[316257876,1709415039426,-500.0,0.00023899,2]
[316257877,1709415039436,-500.0,0.00023899,2]
[316257878,1709415039446,-24384.53628304,0.000239,2]
[316257879,1709415039456,-10073.99545375,0.00023968,7]
[316257880,1709415039465,-500.0,0.00023994,2]
[316257881,1709415039475,-253.6794954,0.00023994,2]
[316257882,1709415039484,-500.0,0.00023996,2]
[316257883,1709415039493,-500.0,0.00023996,2]
[316257884,1709415039503,-500.0,0.00023996,2]
[316257885,1709415039512,-228.49877623,0.00023996,2]
[316257886,1709415039521,-500.0,0.00023996,2]
[316257887,1709415039531,-626.07,0.00023996,2]
[316257888,1709415039540,-500.0,0.00023996,2]
[316257889,1709415039548,-500.0,0.00023996,2]
[316257890,1709415039557,-674.93,0.00023996,2]
[316257891,1709415039566,-2014.42,0.00023996,2]
[316257892,1709415039575,-702.66,0.00023996,2]
[316257893,1709415039584,-500.0,0.00023996,2]
[316257894,1709415039593,-500.0,0.00023996,2]
[316257895,1709415039602,-492.90802371,0.00023996,2]
[316257896,1709415039611,-500.0,0.00023997,2]
[316257897,1709415039620,-500.0,0.00023997,2]
[316257899,1709415039629,-500.0,0.00023997,2]
[316257901,1709415039638,-500.0,0.00023997,2]
[316257903,1709415039648,-500.0,0.00023997,2]
[316257905,1709415039657,-503.21731564,0.00023997,2]
[316257907,1709415039667,-500.0,0.00023997,2]
[316257909,1709415039676,-500.0,0.00023997,2]
[316257911,1709415039685,-500.0,0.00023997,2]
[316257913,1709415039694,-500.0,0.00023997,2]
[316257915,1709415039703,-500.0,0.00023997,2]
[316257917,1709415039713,-500.0,0.00023997,2]
[316257919,1709415039723,-222.46976415,0.00023997,2]
[316257921,1709415039733,-500.0,0.00023997,2]
[316257923,1709415039742,-500.0,0.00023997,2]
[316257925,1709415039752,-289.12,0.00023997,2]
[316257927,1709415039761,-500.0,0.00023997,2]
[316257929,1709415039772,-500.0,0.00023997,2]
[316257931,1709415039782,-500.0,0.00023997,2]
[316257933,1709415039791,-500.0,0.00023997,2]
[316257935,1709415039801,-500.0,0.00023997,2]
[316257937,1709415039810,-500.0,0.00023997,2]
[316257939,1709415039819,-500.0,0.00023997,2]
[316257941,1709415039828,-271.09971033,0.00023997,2]
[316257943,1709415039837,-500.0,0.00023997,2]
[316257945,1709415039846,-500.0,0.00023997,2]
[316257947,1709415039855,-788.19,0.00023997,2]
[316257949,1709415039865,-626.07,0.00023997,2]
[316257951,1709415039875,-500.0,0.00023997,2]
[316257953,1709415039884,-500.0,0.00023997,2]
[316257955,1709415039893,-704.83,0.00023997,2]
[316257957,1709415039903,-500.0,0.00023997,2]
[316257959,1709415039913,-500.0,0.00023997,2]
[316257961,1709415039922,-500.0,0.00023997,2]
[316257963,1709415039936,-500.0,0.00023997,2]
[316257965,1709415039951,-500.0,0.00023997,2]
[316257967,1709415039960,-674.93,0.00023997,2]
[316257969,1709415039970,-2014.42,0.00023997,2]
[316257971,1709415039979,-3680.18,0.00023997,2]
[316257973,1709415039989,-702.66,0.00023997,2]
[316257975,1709415039999,-500.0,0.00023997,2]
[316257977,1709415040010,-500.0,0.00023997,2]
[316257979,1709415040019,-500.0,0.00023997,2]
[316257981,1709415040029,-500.0,0.00023997,2]
[316257982,1709415040038,-633.04,0.00023997,2]
[316257984,1709415040047,-500.0,0.00023997,2]
[316257986,1709415040056,-500.0,0.00023997,2]
[316257988,1709415040065,-500.0,0.00023997,2]
[316257990,1709415040074,-6678.7745074,0.00023998,2]
[316257992,1709415040083,-179.57077703,0.00023998,2]
[316257994,1709415040092,-191.84916503,0.00023998,2]
[316257996,1709415040101,-435.22672033,0.00023998,2]
[316257998,1709415040112,-1040.72636674,0.00023998,3]
[316258000,1709415040122,-752.23146897,0.00023998,2]
[316258002,1709415040132,-463.58098066,0.00023998,2]
[316258004,1709415040143,-1732.22512407,0.00023998,2]
[316258006,1709415040152,-155.0558201,0.00023998,2]
[316258008,1709415040163,-280.36541373,0.00023998,2]
[316258010,1709415040173,-12357.30730409,0.00023998,2]
[316258012,1709415040183,-214.46734632,0.00023998,2]
[316258014,1709415040192,-500.0,0.00023998,2]
[316258016,1709415040201,-503.56815596,0.00023998,2]
[316258018,1709415040210,-500.0,0.00023998,2]
[316258020,1709415040219,-500.0,0.00023998,2]
[316258022,1709415040228,-601.93171131,0.00023998,2]
[316258024,1709415040237,-571.17825851,0.00023998,2]
[316258026,1709415040247,-500.0,0.00023998,2]
[316258028,1709415040256,-563.815251,0.00023998,2]
[316258030,1709415040265,-500.0,0.00023998,2]
[316258032,1709415040274,-500.0,0.00023998,2]
[316258034,1709415040283,-248.54809915,0.00023998,2]
[316258036,1709415040292,-500.0,0.00023998,2]
[316258038,1709415040301,-500.0,0.00023998,2]
[316258040,1709415040310,-500.0,0.00023998,2]
[316258042,1709415040319,-500.0,0.00023998,2]
[316258044,1709415040328,-500.0,0.00023998,2]
[316258046,1709415040337,-500.0,0.00023998,2]
[316258048,1709415040347,-500.0,0.00023998,2]
[316258050,1709415040356,-500.0,0.00023998,2]
[316258052,1709415040365,-500.0,0.00023998,2]
[316258054,1709415040375,-500.0,0.00023998,2]
[316258056,1709415040384,-500.0,0.00023998,2]
[316258058,1709415040393,-500.0,0.00023998,2]
[316258060,1709415040402,-500.0,0.00023998,2]
[316258062,1709415040411,-503.4326383,0.00023998,2]
[316258064,1709415040420,-194.01002538,0.00023998,2]
[316258066,1709415040429,-285.98453077,0.00023998,2]
[316258068,1709415040438,-155.16601719,0.00023998,2]
[316258070,1709415040447,-315.79454201,0.00023998,2]
[316258072,1709415040456,-623.38533298,0.00023998,2]
[316258074,1709415040465,-1591.62159516,0.00023998,2]
[316258076,1709415040474,-557.44319736,0.00023998,2]
[316258078,1709415040483,-342.43862379,0.00023998,2]
[316258080,1709415040492,-649.27585788,0.00023998,2]
[316258082,1709415040501,-155.23588267,0.00023998,2]
[316258084,1709415040510,-155.44423554,0.00023998,2]
[316258086,1709415040519,-549.00013127,0.00023998,2]
[316258088,1709415040528,-157.1486779,0.00023998,2]
[316258090,1709415040536,-156.31288912,0.00023998,2]
[316258092,1709415040545,-155.16455241,0.00023998,2]
[316258094,1709415040554,-151.0,0.00023998,2]
[316258095,1709415040563,-155.178475,0.00023998,2]
[316258097,1709415040572,-184.70899739,0.00023998,2]
[316258099,1709415040582,-151.0,0.00023998,2]
[316258101,1709415040590,-400.0,0.00023998,2]
[316258103,1709415040599,-500.0,0.00023998,2]
[316258105,1709415040609,-500.0,0.00023998,2]
[316258107,1709415040617,-500.0,0.00023998,2]
[316258109,1709415040626,-500.0,0.00023998,2]
[316258111,1709415040635,-155.18622347,0.00023998,2]
[316258113,1709415040645,-235.17872102,0.00023998,2]
[316258115,1709415040654,-155.69178995,0.00023998,2]
[316258117,1709415040664,-290.08429773,0.00023998,2]
[316258119,1709415040674,-500.0,0.00023998,2]
[316258122,1709415040684,-400.75162755,0.00023998,2]
[316258124,1709415040694,-233.5331872,0.00023998,2]
[316258125,1709415040703,-500.0,0.00023998,2]
[316258127,1709415040713,-500.0,0.00023998,2]
[316258129,1709415040723,-500.0,0.00023998,2]
[316258131,1709415040733,-500.0,0.00023998,2]
[316258133,1709415040742,-500.0,0.00023998,2]
[316258135,1709415040751,-505.95,0.00023998,2]
[316258137,1709415040760,-638.12008785,0.00023998,2]
[316258139,1709415040769,-1238.24029911,0.00023998,2]
[316258141,1709415040779,-429.13988284,0.00023998,2]
[316258143,1709415040789,-2573.28620982,0.00023998,2]
[316258145,1709415040798,-151.0,0.00023998,2]
[316258147,1709415040809,-502.38852837,0.00023998,2]
[316258149,1709415040818,-788.19,0.00023998,2]
[316258151,1709415040827,-788.19,0.00023998,2]
[316258153,1709415040835,-788.19,0.00023998,2]
[316258155,1709415040844,-626.07,0.00023998,2]
[316258157,1709415040853,-626.07,0.00023998,2]
[316258159,1709415040862,-626.07,0.00023998,2]
[316258161,1709415040871,-626.07,0.00023998,2]
[316258162,1709415040880,-500.0,0.00023998,2]
[316258164,1709415040889,-500.0,0.00023998,2]
[316258166,1709415040899,-500.0,0.00023998,2]
[316258168,1709415040910,-500.0,0.00023998,2]
[316258170,1709415040918,-500.0,0.00023998,2]
[316258172,1709415040928,-704.83,0.00023998,2]
[316258174,1709415040938,-704.83,0.00023998,2]
[316258176,1709415040951,-704.83,0.00023998,2]
[316258178,1709415040960,-500.0,0.00023998,2]
[316258180,1709415040969,-500.0,0.00023998,2]
[316258182,1709415040978,-500.0,0.00023998,2]
[316258184,1709415040987,-500.0,0.00023998,2]
[316258186,1709415040998,-500.0,0.00023998,2]
[316258188,1709415041007,-500.0,0.00023998,2]
[316258190,1709415041017,-500.0,0.00023998,2]
[316258192,1709415041027,-500.0,0.00023998,2]
[316258193,1709415041036,-240.23,0.00023998,2]
[316258195,1709415041045,-674.93,0.00023998,2]
[316258197,1709415041055,-674.93,0.00023998,2]
[316258199,1709415041064,-674.93,0.00023998,2]
[316258201,1709415041074,-674.93,0.00023998,2]
[316258203,1709415041084,-2014.42,0.00023998,2]
[316258205,1709415041093,-2014.42,0.00023998,2]
[316258207,1709415041102,-2014.42,0.00023998,2]
[316258209,1709415041112,-2014.42,0.00023998,2]
[316258211,1709415041121,-3680.18,0.00023998,2]
[316258213,1709415041130,-3680.18,0.00023998,2]
[316258215,1709415041139,-702.66,0.00023998,2]
[316258217,1709415041149,-702.66,0.00023998,2]
[316258219,1709415041157,-702.66,0.00023998,2]
[316258221,1709415041166,-702.66,0.00023998,2]
[316258223,1709415041175,-500.0,0.00023998,2]
[316258225,1709415041184,-500.0,0.00023998,2]
[316258227,1709415041192,-500.0,0.00023998,2]
[316258229,1709415041201,-500.0,0.00023998,2]
[316258230,1709415041211,-500.0,0.00023998,2]
[316258232,1709415041220,-166.83241099,0.00023998,2]
[316258234,1709415041229,-633.04,0.00023998,2]
[316258236,1709415041238,-633.04,0.00023998,2]
[316258238,1709415041247,-633.04,0.00023998,2]
[316258240,1709415041256,-425.34,0.00023998,2]
[316258242,1709415041265,-500.0,0.00023998,2]
[316258244,1709415041274,-500.0,0.00023998,2]
[316258246,1709415041283,-500.0,0.00023998,2]
[316258248,1709415041292,-500.0,0.00023998,2]
[316258257,1709415041375,-160.0,0.00023999,2]
[316258259,1709415041384,-160.0,0.00023999,2]
[316258261,1709415041394,-160.0,0.00023999,2]
[316258263,1709415041403,-160.0,0.00023999,2]
[316258265,1709415041412,-160.0,0.00023999,2]
[316258267,1709415041422,-160.0,0.00023999,2]
[316258269,1709415041431,-160.0,0.00023999,2]
[316258271,1709415041440,-500.0,0.00023999,2]
[316258273,1709415041448,-500.0,0.00023999,2]
[316258275,1709415041458,-500.0,0.00023999,2]
[316258277,1709415041467,-500.0,0.00023999,2]
[316258279,1709415041476,-621.29325056,0.00023999,2]
[316258281,1709415041485,-500.0,0.00023999,2]
[316258283,1709415041494,-500.0,0.00023999,2]
[316258285,1709415041503,-500.0,0.00023999,2]
[316258287,1709415041512,-500.0,0.00023999,2]
[316258289,1709415041521,-500.0,0.00023999,2]
[316258291,1709415041530,-392.95024596,0.00023999,2]
[316258293,1709415041540,-500.0,0.00023999,2]
[316258295,1709415041549,-500.0,0.00023999,2]
[316258297,1709415041558,-500.0,0.00023999,2]
[316258298,1709415041567,-334.90389526,0.00023999,2]
[316258300,1709415041576,-493.58847924,0.00023999,2]
[316258302,1709415041585,-500.0,0.00023999,2]
[316258304,1709415041594,-427.3819055,0.00023999,2]
[316258306,1709415041603,-635.08739956,0.00023999,2]
[316258308,1709415041612,-500.0,0.00023999,2]
[316258310,1709415041622,-593.83118425,0.00023999,2]
[316258312,1709415041631,-500.0,0.00023999,2]
[316258314,1709415041639,-369.28776619,0.00023999,2]
[316258316,1709415041648,-500.0,0.00023999,2]
[316258318,1709415041657,-500.0,0.00023999,2]
[316258320,1709415041667,-500.0,0.00023999,2]
[316258322,1709415041676,-500.0,0.00023999,2]
[316258324,1709415041685,-406.00363274,0.00023999,2]
[316258326,1709415041694,-500.0,0.00023999,2]
[316258328,1709415041703,-225.0,0.00023999,2]
[316258330,1709415041712,-500.0,0.00023999,2]
[316258332,1709415041722,-500.0,0.00023999,2]
[316258334,1709415041731,-500.0,0.00023999,2]
[316258336,1709415041739,-435.78028465,0.00023999,2]
[316258338,1709415041749,-500.0,0.00023999,2]
[316258340,1709415041758,-500.0,0.00023999,2]
[316258342,1709415041767,-500.0,0.00023999,2]
[316258344,1709415041775,-500.0,0.00023999,2]
[316258346,1709415041785,-500.0,0.00023999,2]
[316258347,1709415041794,-500.0,0.00023999,2]
[316258349,1709415041803,-230.35341468,0.00023999,2]
[316258351,1709415041812,-500.0,0.00023999,2]
[316258353,1709415041821,-500.0,0.00023999,2]
[316258355,1709415041830,-500.0,0.00023999,2]
[316258357,1709415041839,-500.0,0.00023999,2]
[316258359,1709415041849,-500.0,0.00023999,2]
[316258361,1709415041857,-500.0,0.00023999,2]
[316258363,1709415041866,-500.0,0.00023999,2]
[316258365,1709415041876,-500.0,0.00023999,2]
[316258367,1709415041885,-500.0,0.00023999,2]
[316258369,1709415041894,-500.0,0.00023999,2]
[316258371,1709415041903,-500.0,0.00023999,2]
[316258373,1709415041912,-500.0,0.00023999,2]
[316258375,1709415041921,-500.0,0.00023999,2]
[316258377,1709415041930,-285.17263966,0.00023999,2]
[316258379,1709415041946,-788.19,0.00023999,2]
[316258381,1709415041955,-788.19,0.00023999,2]
[316258383,1709415041965,-788.19,0.00023999,2]
[316258385,1709415041975,-788.19,0.00023999,2]
[316258387,1709415041984,-788.19,0.00023999,2]
[316258389,1709415041994,-788.19,0.00023999,2]
[316258390,1709415042003,-788.19,0.00023999,2]
[316258391,1709415042012,-788.19,0.00023999,2]
[316258392,1709415042022,-788.19,0.00023999,2]
[316258393,1709415042033,-788.19,0.00023999,2]
[316258394,1709415042042,-788.19,0.00023999,2]
[316258395,1709415042051,-788.19,0.00023999,2]
[316258396,1709415042060,-788.19,0.00023999,2]
[316258397,1709415042070,-788.19,0.00023999,2]
[316258398,1709415042079,-788.19,0.00023999,2]
[316258399,1709415042089,-788.19,0.00023999,2]
[316258400,1709415042098,-788.19,0.00023999,2]
[316258401,1709415042107,-788.19,0.00023999,2]
[316258402,1709415042117,-788.41357497,0.00023999,2]
[316258403,1709415042126,-626.07,0.00023999,2]
[316258404,1709415042135,-626.07,0.00023999,2]
[316258405,1709415042144,-626.07,0.00023999,2]
[316258406,1709415042154,-626.07,0.00023999,2]
[316258407,1709415042164,-626.07,0.00023999,2]
[316258409,1709415042173,-626.07,0.00023999,2]
[316258411,1709415042181,-626.07,0.00023999,2]
[316258413,1709415042190,-626.07,0.00023999,2]